fUST/lending_fUST_20250607
["ID","MTS","AMOUNT","RATE_DAILY","PERIOD"]
[364923158,1749303038780,-500.0,0.00019076,2]
[364923161,1749303038789,-500.0,0.00019076,2]
[364923163,1749303038798,-500.0,0.00019076,2]
[364923165,1749303038809,-500.0,0.00019076,2]
[364923167,1749303038818,-500.0,0.00019076,2]
[364923169,1749303038828,-500.0,0.00019076,2]
[364923171,1749303038837,-500.0,0.00019076,2]
[364923173,1749303038847,-215.31971214,0.00019076,2]
[364923175,1749303038857,-268805.996,0.00019077,2]
[364923177,1749303038866,-160.86606863,0.00019078,2]
[364923179,1749303038876,-300.0,0.00019165,2]
[364923181,1749303038886,-384.62518768,0.00019178,2]
[364923183,1749303038895,-420.0,0.00019178,2]
[364923185,1749303038905,-262.95749568,0.00019178,2]
[364923187,1749303038915,-231.97543053,0.00019178,2]
[364923189,1749303038924,-359.40649766,0.00019178,2]
[364923191,1749303038934,-440.0,0.00019178,2]
[364923193,1749303038943,-440.0,0.00019178,2]
[364923195,1749303038954,-177.95187781,0.00019178,2]
[364923197,1749303038964,-495.12089706,0.00019178,2]
[364923199,1749303038973,-440.0,0.00019178,2]
[364923201,1749303038983,-440.0,0.00019178,2]
[364923203,1749303038993,-440.0,0.00019178,2]
[364923205,1749303039003,-440.0,0.00019178,2]
[364923207,1749303039012,-440.0,0.00019178,2]
[364923209,1749303039022,-440.0,0.00019178,2]
[364923211,1749303039031,-440.0,0.00019178,2]
[364923213,1749303039040,-440.0,0.00019178,2]
[364923215,1749303039049,-440.0,0.00019178,2]
[364923217,1749303039060,-440.0,0.00019178,2]
[364923219,1749303039070,-440.0,0.00019178,2]
[364923221,1749303039080,-290.0,0.00019178,2]
[364923223,1749303039090,-440.0,0.00019178,2]
[364923225,1749303039099,-440.0,0.00019178,2]
[364923227,1749303039108,-183.80560514,0.00019178,2]
[364923229,1749303039118,-451.34230826,0.00019178,2]
[364923231,1749303039128,-440.0,0.00019178,2]
[364923233,1749303039138,-440.0,0.00019178,2]
[364923235,1749303039148,-440.0,0.00019178,2]
[364923237,1749303039158,-440.0,0.00019178,2]
[364923239,1749303039167,-440.0,0.00019178,2]
[364923241,1749303039178,-440.0,0.00019178,2]
[364923243,1749303039188,-440.0,0.00019178,2]
[364923245,1749303039198,-440.0,0.00019178,2]
[364923247,1749303039207,-440.0,0.00019178,2]
[364923249,1749303039217,-440.0,0.00019178,2]
[364923251,1749303039226,-440.0,0.00019178,2]
[364923253,1749303039236,-440.0,0.00019178,2]
[364923254,1749303039245,-440.0,0.00019178,2]
[364923256,1749303039255,-2065.92,0.00019178,2]
[364923259,1749303039265,-400.0,0.00019178,2]
[364923261,1749303039275,-559.57,0.00019178,2]
[364923262,1749303039284,-440.0,0.00019178,2]
[364923264,1749303039293,-440.0,0.00019178,2]
[364923266,1749303039302,-440.0,0.00019178,2]
[364923268,1749303039312,-440.0,0.00019178,2]
[364923270,1749303039322,-440.0,0.00019178,2]
[364923272,1749303039332,-440.0,0.00019178,2]
[364923274,1749303039341,-440.0,0.00019178,2]
[364923276,1749303039350,-440.0,0.00019178,2]
[364923278,1749303039361,-440.0,0.00019178,2]
[364923280,1749303039370,-440.0,0.00019178,2]
[364923282,1749303039379,-440.0,0.00019178,2]
[364923284,1749303039389,-440.0,0.00019178,2]
[364923286,1749303039399,-440.0,0.00019178,2]
[364923288,1749303039409,-440.0,0.00019178,2]
[364923290,1749303039418,-440.0,0.00019178,2]
[364923292,1749303039428,-440.0,0.00019178,2]
[364923294,1749303039437,-440.0,0.00019178,2]
[364923296,1749303039447,-440.0,0.00019178,2]
[364923298,1749303039457,-440.0,0.00019178,2]
[364923300,1749303039466,-440.0,0.00019178,2]
[364923302,1749303039476,-475.94,0.00019178,2]
[364923304,1749303039486,-440.0,0.00019178,2]
[364923305,1749303039495,-440.0,0.00019178,2]
[364923306,1749303039504,-440.0,0.00019178,2]
[364923307,1749303039514,-1236.76,0.00019178,2]
[364923308,1749303039523,-500.0,0.00019178,2]
[364923309,1749303039538,-440.0,0.00019178,2]
[364923310,1749303039550,-2816.7,0.00019178,2]
[364923311,1749303039565,-440.0,0.00019178,2]
[364923312,1749303039578,-440.0,0.00019178,2]
[364923313,1749303039591,-440.0,0.00019178,2]
[364923314,1749303039603,-440.0,0.00019178,2]
[364923315,1749303039615,-440.0,0.00019178,2]
[364923316,1749303039625,-500.12,0.00019178,2]
[364923317,1749303039636,-900.26,0.00019178,2]
[364923318,1749303039649,-1099.63,0.00019178,2]
[364923319,1749303039664,-260.0,0.00019178,2]
[364923320,1749303039675,-440.0,0.00019178,2]
[364923321,1749303039687,-440.0,0.00019178,2]
[364923322,1749303039698,-440.0,0.00019178,2]
[364923323,1749303039710,-573.81,0.00019178,2]
[364923324,1749303039722,-440.0,0.00019178,2]
[364923325,1749303039734,-440.0,0.00019178,2]
[364923326,1749303039747,-908.18,0.00019178,2]
[364923328,1749303039759,-440.0,0.00019178,2]
[364923331,1749303039772,-2154.83,0.00019178,2]
[364923333,1749303039784,-440.0,0.00019178,2]
[364923335,1749303039797,-440.0,0.00019178,2]
[364923337,1749303039808,-350.0,0.00019178,2]
[364923339,1749303039820,-491.26,0.00019178,2]
[364923342,1749303039831,-440.0,0.00019178,2]
[364923344,1749303039843,-440.0,0.00019178,2]
[364923346,1749303039855,-440.0,0.00019178,2]
[364923348,1749303039867,-1839.89,0.00019178,2]
[364923350,1749303039878,-4797.31,0.00019178,2]
[364923353,1749303039891,-2444.44,0.00019178,2]
[364923355,1749303039903,-516.7,0.00019178,2]
[364923357,1749303039915,-2127.97,0.00019178,2]
[364923359,1749303039927,-641.71,0.00019178,2]
[364923361,1749303039939,-440.0,0.00019178,2]
[364923364,1749303039951,-440.0,0.00019178,2]
[364923366,1749303039963,-440.0,0.00019178,2]
[364923368,1749303039974,-440.0,0.00019178,2]
[364923370,1749303039984,-440.0,0.00019178,2]
[364923372,1749303039994,-440.0,0.00019178,2]
[364923374,1749303040007,-440.0,0.00019178,2]
[364923377,1749303040018,-440.0,0.00019178,2]
[364923379,1749303040029,-440.0,0.00019178,2]
[364923381,1749303040041,-390.0,0.00019178,2]
[364923383,1749303040053,-440.0,0.00019178,2]
[364923385,1749303040065,-1023.09,0.00019178,2]
[364923388,1749303040077,-440.0,0.00019178,2]
[364923390,1749303040089,-440.0,0.00019178,2]
[364923392,1749303040101,-440.0,0.00019178,2]
[364923394,1749303040113,-440.0,0.00019178,2]
[364923397,1749303040125,-1643.77,0.00019178,2]
[364923399,1749303040137,-440.0,0.00019178,2]
[364923401,1749303040151,-1186.44,0.00019178,2]
[364923404,1749303040163,-291.57531219,0.00019352,2]
[364923406,1749303040175,-1180.22,0.00019442,3]
[364923408,1749303040188,-590.11,0.00019442,3]
[364923412,1749303040199,-295.05,0.00019442,3]
[364923414,1749303040210,-885.2,0.00019442,3]
[364923416,1749303040220,-178.79,0.00019442,3]
[364923418,1749303040230,-536.39,0.00019442,3]
[364923421,1749303040240,-282.44,0.00019442,3]
[364923424,1749303040251,-847.33,0.00019442,3]
[364923427,1749303040263,-365.54,0.00019452,2]
[364923431,1749303040275,-440.0,0.00019452,2]
[364923434,1749303040288,-440.0,0.00019452,2]
[364923437,1749303040300,-440.0,0.00019452,2]
[364923440,1749303040312,-440.0,0.00019452,2]
[364923445,1749303040324,-192.83495075,0.00019452,2]
[364923448,1749303040334,-440.0,0.00019452,2]
[364923451,1749303040345,-440.0,0.00019452,2]
[364923454,1749303040356,-440.0,0.00019452,2]
[364923457,1749303040367,-440.0,0.00019452,2]
[364923460,1749303040378,-440.0,0.00019452,2]
[364923464,1749303040391,-440.0,0.00019452,2]
[364923467,1749303040403,-440.0,0.00019452,2]
[364923470,1749303040415,-440.0,0.00019452,2]
[364923474,1749303040426,-440.0,0.00019452,2]
[364923477,1749303040436,-440.0,0.00019452,2]
[364923480,1749303040447,-440.0,0.00019452,2]
[364923483,1749303040458,-440.0,0.00019452,2]
[364923486,1749303040468,-440.0,0.00019452,2]
[364923490,1749303040479,-440.0,0.00019452,2]
[364923494,1749303040490,-440.0,0.00019452,2]
[364923497,1749303040501,-440.0,0.00019452,2]
[364923500,1749303040512,-440.0,0.00019452,2]
[364923503,1749303040522,-440.0,0.00019452,2]
[364923506,1749303040534,-440.0,0.00019452,2]
[364923509,1749303040545,-2065.92,0.00019452,2]
[364923511,1749303040556,-559.57,0.00019452,2]
[364923514,1749303040567,-440.0,0.00019452,2]
[364923516,1749303040579,-462.79846069,0.00019452,2]
[364923519,1749303040590,-440.0,0.00019452,2]
[364923522,1749303040602,-440.0,0.00019452,2]
[364923525,1749303040612,-440.0,0.00019452,2]
[364923528,1749303040623,-440.0,0.00019452,2]
[364923532,1749303040634,-440.0,0.00019452,2]
[364923536,1749303040645,-440.0,0.00019452,2]
[364923539,1749303040658,-440.0,0.00019452,2]
[364923542,1749303040673,-440.0,0.00019452,2]
[364923545,1749303040683,-440.0,0.00019452,2]
[364923548,1749303040694,-440.0,0.00019452,2]
[364923552,1749303040708,-440.0,0.00019452,2]
[364923555,1749303040719,-440.0,0.00019452,2]
[364923558,1749303040730,-440.0,0.00019452,2]
[364923561,1749303040741,-440.0,0.00019452,2]
[364923564,1749303040754,-440.0,0.00019452,2]
[364923568,1749303040766,-440.0,0.00019452,2]
[364923571,1749303040777,-200.10470056,0.00019452,2]
[364923575,1749303040787,-475.94,0.00019452,2]
[364923578,1749303040799,-440.0,0.00019452,2]
[364923581,1749303040810,-277.87887871,0.00019452,2]
[364923584,1749303040821,-1236.76,0.00019452,2]
[364923586,1749303040832,-440.0,0.00019452,2]
[364923588,1749303040843,-2816.7,0.00019452,2]
[364923590,1749303040854,-440.0,0.00019452,2]
[364923593,1749303040865,-276.95083678,0.00019452,2]
[364923595,1749303040876,-440.0,0.00019452,2]
[364923597,1749303040886,-440.0,0.00019452,2]
[364923599,1749303040897,-440.0,0.00019452,2]
[364923601,1749303040909,-500.12,0.00019452,2]
[364923603,1749303040920,-900.26,0.00019452,2]
[364923605,1749303040930,-1099.63,0.00019452,2]
[364923607,1749303040941,-440.0,0.00019452,2]
[364923609,1749303040953,-440.0,0.00019452,2]
[364923611,1749303040964,-573.81,0.00019452,2]
[364923614,1749303040975,-440.0,0.00019452,2]
[364923616,1749303040986,-440.0,0.00019452,2]
[364923619,1749303040998,-908.18,0.00019452,2]
[364923622,1749303041009,-440.0,0.00019452,2]
[364923624,1749303041020,-2154.83,0.00019452,2]
[364923626,1749303041032,-440.0,0.00019452,2]
[364923628,1749303041043,-256.57161103,0.00019452,2]
[364923630,1749303041053,-491.26,0.00019452,2]
[364923632,1749303041065,-440.0,0.00019452,2]
[364923634,1749303041076,-440.0,0.00019452,2]
[364923636,1749303041088,-440.0,0.00019452,2]
[364923639,1749303041099,-1839.89,0.00019452,2]
[364923641,1749303041111,-4797.31,0.00019452,2]
[364923644,1749303041122,-2444.44,0.00019452,2]
[364923646,1749303041134,-2127.97,0.00019452,2]
[364923649,1749303041144,-641.71,0.00019452,2]
[364923651,1749303041155,-440.0,0.00019452,2]
[364923653,1749303041167,-440.0,0.00019452,2]
[364923656,1749303041179,-440.0,0.00019452,2]
[364923658,1749303041191,-440.0,0.00019452,2]
[364923660,1749303041202,-440.0,0.00019452,2]
[364923662,1749303041213,-440.0,0.00019452,2]
[364923664,1749303041224,-440.0,0.00019452,2]
[364923667,1749303041235,-440.0,0.00019452,2]
[364923669,1749303041246,-440.0,0.00019452,2]
[364923671,1749303041258,-1023.09,0.00019452,2]
[364923673,1749303041269,-440.0,0.00019452,2]
[364923676,1749303041281,-440.0,0.00019452,2]
[364923678,1749303041292,-440.0,0.00019452,2]
[364923680,1749303041303,-440.0,0.00019452,2]
[364923682,1749303041314,-1643.77,0.00019452,2]
[364923684,1749303041325,-440.0,0.00019452,2]
[364923686,1749303041336,-1186.44,0.00019452,2]
[364923687,1749303041346,-574.85278974,0.00019557,2]
[364923688,1749303041357,-440.0,0.00019726,2]
[364923689,1749303041368,-440.0,0.00019726,2]
[364923692,1749303041379,-440.0,0.00019726,2]
[364923694,1749303041390,-440.0,0.00019726,2]
[364923696,1749303041403,-440.0,0.00019726,2]
[364923698,1749303041415,-440.0,0.00019726,2]
[364923701,1749303041426,-440.0,0.00019726,2]
[364923703,1749303041437,-440.0,0.00019726,2]
[364923705,1749303041448,-440.0,0.00019726,2]
[364923707,1749303041459,-440.0,0.00019726,2]
[364923732,1749303041688,-440.0,0.00019726,2]
[364923734,1749303041700,-440.0,0.00019726,2]
[364923736,1749303041711,-415.13,0.00019726,2]
[364923738,1749303041721,-440.0,0.00019726,2]
[364923739,1749303041731,-440.0,0.00019726,2]
[364923741,1749303041741,-440.0,0.00019726,2]
[364923743,1749303041750,-440.0,0.00019726,2]
[364923744,1749303041759,-476.00904347,0.00019726,2]
[364923746,1749303041770,-440.0,0.00019726,2]
[364923748,1749303041781,-440.0,0.00019726,2]
[364923749,1749303041790,-440.0,0.00019726,2]
[364923751,1749303041801,-440.0,0.00019726,2]
[364923753,1749303041812,-2065.92,0.00019726,2]
[364923754,1749303041821,-559.57,0.00019726,2]
[364923756,1749303041831,-440.0,0.00019726,2]
[364923758,1749303041841,-440.0,0.00019726,2]
[364923759,1749303041852,-440.0,0.00019726,2]
[364923761,1749303041862,-440.0,0.00019726,2]
[364923763,1749303041872,-440.0,0.00019726,2]
[364923765,1749303041884,-440.0,0.00019726,2]
[364923767,1749303041895,-440.0,0.00019726,2]
[364923769,1749303041907,-440.0,0.00019726,2]
[364923770,1749303041916,-440.0,0.00019726,2]
[364923772,1749303041926,-386.93453765,0.00019726,2]
[364923773,1749303041936,-440.0,0.00019726,2]
[364923775,1749303041946,-290.0,0.00019726,2]
[364923777,1749303041955,-440.0,0.00019726,2]
[364923779,1749303041965,-440.0,0.00019726,2]
[364923780,1749303041974,-440.0,0.00019726,2]
[364923782,1749303041984,-440.0,0.00019726,2]
[364923784,1749303041994,-440.0,0.00019726,2]
[364923785,1749303042003,-475.94,0.00019726,2]
[364923787,1749303042013,-440.0,0.00019726,2]
[364923789,1749303042022,-1236.76,0.00019726,2]
[364923791,1749303042032,-440.0,0.00019726,2]
[364923793,1749303042042,-2816.7,0.00019726,2]
[364923794,1749303042051,-440.0,0.00019726,2]
[364923796,1749303042062,-440.0,0.00019726,2]
[364923798,1749303042071,-224.73,0.00019726,2]
[364923800,1749303042081,-440.0,0.00019726,2]
[364923801,1749303042090,-500.12,0.00019726,2]
[364923803,1749303042100,-900.26,0.00019726,2]
[364923805,1749303042110,-1099.63,0.00019726,2]
[364923807,1749303042119,-440.0,0.00019726,2]
[364923809,1749303042129,-440.0,0.00019726,2]
[364923810,1749303042138,-573.81,0.00019726,2]
[364923812,1749303042148,-440.0,0.00019726,2]
[364923814,1749303042158,-440.0,0.00019726,2]
[364923816,1749303042168,-908.18,0.00019726,2]
[364923817,1749303042177,-440.0,0.00019726,2]
[364923818,1749303042187,-2154.83,0.00019726,2]
[364923819,1749303042197,-440.0,0.00019726,2]
[364923820,1749303042206,-491.26,0.00019726,2]
[364923821,1749303042216,-440.0,0.00019726,2]
[364923823,1749303042226,-440.0,0.00019726,2]
[364923825,1749303042235,-440.0,0.00019726,2]
[364923827,1749303042245,-1839.89,0.00019726,2]
[364923829,1749303042254,-4797.31,0.00019726,2]
[364923831,1749303042263,-2444.44,0.00019726,2]
[364923833,1749303042272,-2127.97,0.00019726,2]
[364923835,1749303042282,-641.71,0.00019726,2]
[364923837,1749303042291,-404.32344527,0.00019726,2]
[364923839,1749303042301,-440.0,0.00019726,2]
[364923841,1749303042311,-440.0,0.00019726,2]
[364923843,1749303042321,-440.0,0.00019726,2]
[364923845,1749303042332,-440.0,0.00019726,2]
[364923847,1749303042342,-440.0,0.00019726,2]
[364923849,1749303042352,-440.0,0.00019726,2]
[364923851,1749303042362,-440.0,0.00019726,2]
[364923853,1749303042372,-440.0,0.00019726,2]
[364923855,1749303042381,-1023.09,0.00019726,2]
[364923857,1749303042391,-440.0,0.00019726,2]
[364923860,1749303042401,-440.0,0.00019726,2]
[364923862,1749303042410,-159.14307656,0.00019726,2]
[364923864,1749303042419,-440.0,0.00019726,2]
[364923866,1749303042428,-1643.77,0.00019726,2]
[364923868,1749303042438,-1186.44,0.00019726,2]
[364923870,1749303042449,-500.0,0.00019786,2]
[364923872,1749303042460,-500.0,0.00019786,2]
[364923874,1749303042469,-500.0,0.00019791,2]
[364923876,1749303042479,-500.0,0.00019791,2]
[364923878,1749303042489,-500.0,0.00019791,2]
[364923880,1749303042498,-500.0,0.00019791,2]
[364923882,1749303042507,-500.0,0.00019791,2]
[364923884,1749303042517,-503.20737064,0.00019791,2]
[364923886,1749303042528,-1203.6029585,0.000199,2]
[364923888,1749303042539,-291.57531219,0.00019938,2]
[364923891,1749303042550,-296.413,0.00019988,2]
[364923893,1749303042560,-16000.0,0.00019988,2]
[364923895,1749303042570,-12226.5412202,0.00019988,2]
[364923897,1749303042579,-14867.35014834,0.0001999,2]
[364923898,1749303042589,-440.0,0.0002,2]
[364923900,1749303042598,-440.0,0.0002,2]
[364923902,1749303042607,-440.0,0.0002,2]
[364923904,1749303042617,-440.0,0.0002,2]
[364923906,1749303042627,-440.0,0.0002,2]
[364923908,1749303042637,-177.51,0.0002,2]
[364923910,1749303042647,-440.0,0.0002,2]
[364923911,1749303042658,-440.0,0.0002,2]
[364923913,1749303042670,-440.0,0.0002,2]
[364923915,1749303042679,-450.03389082,0.0002,2]
[364923917,1749303042688,-440.0,0.0002,2]
[364923919,1749303042697,-440.0,0.0002,2]
[364923921,1749303042707,-440.0,0.0002,2]
[364923923,1749303042717,-440.0,0.0002,2]
[364923925,1749303042726,-440.0,0.0002,2]
[364923926,1749303042736,-440.0,0.0002,2]
[364923929,1749303042746,-440.0,0.0002,2]
[364923930,1749303042756,-440.0,0.0002,2]
[364923932,1749303042766,-440.0,0.0002,2]
[364923935,1749303042777,-440.0,0.0002,2]
[364923936,1749303042786,-2065.92,0.0002,2]
[364923938,1749303042796,-559.57,0.0002,2]
[364923940,1749303042805,-440.0,0.0002,2]
[364923943,1749303042815,-440.0,0.0002,2]
[364923945,1749303042825,-440.0,0.0002,2]
[364923947,1749303042835,-440.0,0.0002,2]
[364923949,1749303042844,-440.0,0.0002,2]
[364923950,1749303042853,-440.0,0.0002,2]
[364923952,1749303042863,-440.0,0.0002,2]
[364923954,1749303042872,-440.0,0.0002,2]
[364923956,1749303042881,-440.0,0.0002,2]
[364923958,1749303042890,-440.0,0.0002,2]
[364923960,1749303042900,-440.0,0.0002,2]
[364923962,1749303042910,-440.0,0.0002,2]
[364923964,1749303042919,-440.0,0.0002,2]
[364923966,1749303042929,-440.0,0.0002,2]
[364923968,1749303042939,-440.0,0.0002,2]
[364923970,1749303042948,-475.94,0.0002,2]
[364923972,1749303042959,-440.0,0.0002,2]
[364923974,1749303042969,-1236.76,0.0002,2]
[364923976,1749303042980,-440.0,0.0002,2]
[364923978,1749303042989,-2816.7,0.0002,2]
[364923980,1749303042999,-440.0,0.0002,2]
[364923982,1749303043009,-440.0,0.0002,2]
[364923983,1749303043019,-250.94138988,0.0002,2]
[364923985,1749303043028,-440.0,0.0002,2]
[364923986,1749303043038,-500.12,0.0002,2]
[364923987,1749303043048,-900.26,0.0002,2]
[364923988,1749303043058,-1099.63,0.0002,2]
[364923989,1749303043067,-10963.90069888,0.0002,2]
[364923990,1749303043077,-4609.23722143,0.0002,2]
[364923992,1749303043086,-440.0,0.0002,2]
[364923993,1749303043096,-440.0,0.0002,2]
[364923994,1749303043105,-573.81,0.0002,2]
[364923995,1749303043115,-305.0,0.0002,2]
[364923996,1749303043125,-440.0,0.0002,2]
[364923997,1749303043135,-440.0,0.0002,2]
[364923998,1749303043144,-908.18,0.0002,2]
[364923999,1749303043155,-440.0,0.0002,2]
[364924000,1749303043165,-2154.83,0.0002,2]
[364924001,1749303043175,-440.0,0.0002,2]
[364924002,1749303043185,-491.26,0.0002,2]
[364924003,1749303043194,-440.0,0.0002,2]
[364924004,1749303043204,-440.0,0.0002,2]
[364924005,1749303043213,-440.0,0.0002,2]
[364924006,1749303043223,-1839.89,0.0002,2]
[364924007,1749303043233,-4797.31,0.0002,2]
[364924009,1749303043242,-2444.44,0.0002,2]
[364924010,1749303043252,-2127.97,0.0002,2]
[364924011,1749303043261,-641.71,0.0002,2]
[364924012,1749303043272,-440.0,0.0002,2]
[364924013,1749303043281,-440.0,0.0002,2]
[364924014,1749303043291,-440.0,0.0002,2]
[364924016,1749303043300,-440.0,0.0002,2]
[364924018,1749303043310,-440.0,0.0002,2]
[364924021,1749303043320,-440.0,0.0002,2]
[364924023,1749303043329,-440.0,0.0002,2]
[364924026,1749303043339,-400.15,0.0002,2]
[364924030,1749303043348,-1023.09,0.0002,2]
[364924032,1749303043358,-440.0,0.0002,2]
[364924034,1749303043367,-440.0,0.0002,2]
[364924036,1749303043377,-440.0,0.0002,2]
[364924038,1749303043386,-1643.77,0.0002,2]
[364924040,1749303043396,-1186.44,0.0002,2]
[364924041,1749303043405,-500.0,0.00020003,2]
[364924044,1749303043415,-269.53884081,0.00020003,2]
[364924046,1749303043424,-635.04327418,0.00020046,2]
[364924047,1749303043434,-1203.6029584,0.00020072,2]
[364924048,1749303043443,-500.0,0.00020103,2]
[364924049,1749303043453,-249.584,0.00020224,2]
[364924050,1749303043462,-1203.6029584,0.00020245,2]
[364924051,1749303043472,-160.0,0.00020272,2]
[364924052,1749303043481,-420.0,0.00020273,2]
[364924053,1749303043491,-440.0,0.00020273,2]
[364924054,1749303043501,-380.22298708,0.00020273,2]
[364924055,1749303043511,-440.0,0.00020273,2]
[364924056,1749303043521,-440.0,0.00020273,2]
[364924057,1749303043531,-440.0,0.00020273,2]
[364924058,1749303043541,-440.0,0.00020273,2]
[364924059,1749303043551,-440.0,0.00020273,2]
[364924060,1749303043560,-440.0,0.00020273,2]
[364924061,1749303043569,-440.0,0.00020273,2]
[364924062,1749303043579,-440.0,0.00020273,2]
[364924063,1749303043589,-440.0,0.00020273,2]
[364924065,1749303043598,-440.0,0.00020273,2]
[364924067,1749303043608,-440.0,0.00020273,2]
[364924068,1749303043617,-440.0,0.00020273,2]
[364924070,1749303043627,-440.0,0.00020273,2]
[364924071,1749303043637,-440.0,0.00020273,2]
[364924072,1749303043646,-440.0,0.00020273,2]
[364924073,1749303043656,-2065.92,0.00020273,2]
[364924074,1749303043666,-559.57,0.00020273,2]
[364924075,1749303043677,-440.0,0.00020273,2]
[364924077,1749303043686,-440.0,0.00020273,2]
[364924078,1749303043696,-440.0,0.00020273,2]
[364924079,1749303043706,-440.0,0.00020273,2]
[364924080,1749303043715,-440.0,0.00020273,2]
[364924081,1749303043724,-440.0,0.00020273,2]
[364924082,1749303043734,-440.0,0.00020273,2]
[364924083,1749303043743,-440.0,0.00020273,2]
[364924084,1749303043752,-440.0,0.00020273,2]
[364924085,1749303043761,-440.0,0.00020273,2]
[364924086,1749303043771,-440.0,0.00020273,2]
[364924087,1749303043781,-440.0,0.00020273,2]
[364924088,1749303043791,-440.0,0.00020273,2]
[364924090,1749303043800,-440.0,0.00020273,2]
[364924091,1749303043810,-440.0,0.00020273,2]
[364924092,1749303043819,-475.94,0.00020273,2]
[364924093,1749303043830,-440.0,0.00020273,2]
[364924094,1749303043839,-1236.76,0.00020273,2]
[364924095,1749303043849,-440.0,0.00020273,2]
[364924096,1749303043859,-2816.7,0.00020273,2]
[364924097,1749303043868,-440.0,0.00020273,2]
[364924098,1749303043878,-440.0,0.00020273,2]
[364924099,1749303043888,-440.0,0.00020273,2]
[364924100,1749303043897,-500.12,0.00020273,2]
[364924101,1749303043907,-900.26,0.00020273,2]
[364924102,1749303043917,-1099.63,0.00020273,2]
[364924104,1749303043927,-440.0,0.00020273,2]
[364924106,1749303043937,-440.0,0.00020273,2]
[364924108,1749303043947,-573.81,0.00020273,2]
[364924110,1749303043957,-440.0,0.00020273,2]
[364924111,1749303043966,-440.0,0.00020273,2]
[364924112,1749303043976,-908.18,0.00020273,2]
[364924113,1749303043986,-440.0,0.00020273,2]
[364924114,1749303043995,-2154.83,0.00020273,2]
[364924115,1749303044006,-440.0,0.00020273,2]
[364924116,1749303044015,-491.26,0.00020273,2]
[364924117,1749303044025,-440.0,0.00020273,2]
[364924118,1749303044035,-440.0,0.00020273,2]
[364924119,1749303044045,-440.0,0.00020273,2]
[364924120,1749303044055,-1839.89,0.00020273,2]
[364924121,1749303044065,-4797.31,0.00020273,2]
[364924122,1749303044075,-2444.44,0.00020273,2]
[364924123,1749303044085,-2127.97,0.00020273,2]
[364924124,1749303044095,-641.71,0.00020273,2]
[364924125,1749303044105,-440.0,0.00020273,2]
[364924126,1749303044115,-440.0,0.00020273,2]
[364924127,1749303044124,-440.0,0.00020273,2]
[364924128,1749303044134,-440.0,0.00020273,2]
[364924129,1749303044144,-440.0,0.00020273,2]
[364924130,1749303044154,-440.0,0.00020273,2]
[364924131,1749303044163,-546.57812905,0.00020273,2]